fUSD/lending_fUSD_20250916
["ID","MTS","AMOUNT","RATE_DAILY","PERIOD"]
[385845343,1758059500777,-400.0,0.00032054,6]
[385845344,1758059500786,-400.0,0.00032054,6]
[385845345,1758059500795,-400.0,0.00032054,6]
[385845346,1758059500803,-400.0,0.00032054,6]
[385845347,1758059500813,-485.81397068,0.00032054,6]
[385845348,1758059500822,-400.0,0.00032054,6]
[385845349,1758059500831,-400.0,0.00032054,6]
[385845350,1758059500840,-179.97858737,0.00032054,6]
[385845351,1758059500849,-400.0,0.00032054,6]
[385845352,1758059500858,-400.0,0.00032054,6]
[385845353,1758059500868,-400.0,0.00032054,6]
[385845354,1758059500877,-400.0,0.00032054,6]
[385845355,1758059500886,-400.0,0.00032054,6]
[385845356,1758059500896,-400.0,0.00032054,6]
[385845357,1758059500905,-363.25156205,0.00032054,6]
[385845358,1758059500914,-400.0,0.00032054,6]
[385845359,1758059500924,-446.83,0.00032054,6]
[385845360,1758059500935,-400.0,0.00032054,6]
[385845361,1758059500945,-400.0,0.00032054,6]
[385845362,1758059500955,-427.10108362,0.00032054,6]
[385845363,1758059500967,-400.0,0.00032054,6]
[385845364,1758059500978,-400.0,0.00032054,6]
[385845365,1758059500989,-400.0,0.00032054,6]
[385845366,1758059500998,-171.49132465,0.00032054,6]
[385845367,1758059501009,-164.7893666,0.00032054,6]
[385845368,1758059501019,-400.0,0.00032054,6]
[385845369,1758059501030,-547.28,0.00032054,6]
[385845370,1758059501039,-400.0,0.00032054,6]
[385845371,1758059501048,-412.81137897,0.00032054,6]
[385845372,1758059501057,-400.0,0.00032054,6]
[385845373,1758059501067,-400.0,0.00032054,6]
[385845374,1758059501076,-400.0,0.00032054,6]
[385845375,1758059501086,-400.0,0.00032054,6]
[385845376,1758059501095,-193.8100282,0.00032054,6]
[385845377,1758059501104,-400.0,0.00032054,6]
[385845378,1758059501113,-400.0,0.00032054,6]
[385845379,1758059501122,-400.0,0.00032054,6]
[385845380,1758059501131,-462.26289193,0.00032054,6]
[385845381,1758059501140,-400.0,0.00032054,6]
[385845382,1758059501149,-400.0,0.00032054,6]
[385845383,1758059501158,-400.0,0.00032054,6]
[385845384,1758059501168,-400.0,0.00032054,6]
[385845385,1758059501176,-400.0,0.00032054,6]
[385845386,1758059501186,-400.0,0.00032054,6]
[385845387,1758059501195,-400.0,0.00032054,6]
[385845388,1758059501204,-400.0,0.00032054,6]
[385845389,1758059501214,-404.16,0.00032054,6]
[385845390,1758059501223,-469.91535282,0.00032054,6]
[385845391,1758059501232,-400.0,0.00032054,6]
[385845392,1758059501241,-400.0,0.00032054,6]
[385845393,1758059501250,-528.17,0.00032054,6]
[385845394,1758059501260,-542.9,0.00032054,6]
[385845395,1758059501269,-400.0,0.00032054,6]
[385845396,1758059501278,-174.9580925,0.00032054,6]
[385845397,1758059501287,-400.0,0.00032054,6]
[385845398,1758059501296,-400.0,0.00032054,6]
[385845399,1758059501305,-400.0,0.00032054,6]
[385845400,1758059501313,-400.0,0.00032054,6]
[385845401,1758059501323,-400.0,0.00032054,6]
[385845402,1758059501332,-854.5,0.00032054,6]
[385845403,1758059501341,-403.43,0.00032054,6]
[385845404,1758059501350,-400.0,0.00032054,6]
[385845405,1758059501359,-400.0,0.00032054,6]
[385845406,1758059501368,-400.0,0.00032054,6]
[385845407,1758059501377,-400.0,0.00032054,6]
[385845408,1758059501386,-400.0,0.00032054,6]
[385845409,1758059501398,-400.0,0.00032054,6]
[385845410,1758059501407,-400.0,0.00032054,6]
[385845411,1758059501416,-400.0,0.00032054,6]
[385845412,1758059501426,-400.0,0.00032054,6]
[385845413,1758059501435,-400.0,0.00032054,6]
[385845414,1758059501444,-400.0,0.00032054,6]
[385845415,1758059501453,-400.0,0.00032054,6]
[385845416,1758059501463,-400.0,0.00032054,6]
[385845417,1758059501472,-400.0,0.00032054,6]
[385845418,1758059501481,-400.0,0.00032054,6]
[385845419,1758059501490,-425.79,0.00032054,6]
[385845420,1758059501500,-400.0,0.00032054,6]
[385845421,1758059501508,-440.62,0.00032054,6]
[385845422,1758059501518,-400.0,0.00032054,6]
[385845423,1758059501527,-400.0,0.00032054,6]
[385845424,1758059501535,-400.0,0.00032054,6]
[385845425,1758059501545,-627.06,0.00032054,6]
[385845426,1758059501554,-400.0,0.00032054,6]
[385845427,1758059501563,-400.0,0.00032054,6]
[385845428,1758059501573,-400.0,0.00032054,6]
[385845429,1758059501582,-404.88,0.00032054,6]
[385845430,1758059501591,-400.0,0.00032054,6]
[385845431,1758059501599,-400.0,0.00032054,6]
[385845432,1758059501609,-400.0,0.00032054,6]
[385845433,1758059501617,-400.0,0.00032054,6]
[385845434,1758059501626,-597.91,0.00032054,6]
[385845435,1758059501635,-550.75,0.00032054,6]
[385845436,1758059501644,-482.27,0.00032054,6]
[385845437,1758059501653,-400.0,0.00032054,6]
[385845438,1758059501662,-400.0,0.00032054,6]
[385845439,1758059501671,-400.0,0.00032054,6]
[385845440,1758059501680,-489.33,0.00032054,6]
[385845441,1758059501689,-400.0,0.00032054,6]
[385845442,1758059501698,-400.0,0.00032054,6]
[385845443,1758059501707,-400.0,0.00032054,6]
[385845444,1758059501716,-400.44,0.00032054,6]
[385845445,1758059501725,-548.24642774,0.00032054,6]
[385845446,1758059501734,-432.89,0.00032054,6]
[385845447,1758059501743,-1630.47,0.00032054,6]
[385845448,1758059501752,-400.0,0.00032054,6]
[385845449,1758059501762,-400.0,0.00032054,6]
[385845450,1758059501771,-464.0,0.00032054,6]
[385845451,1758059501781,-512.93728541,0.00032054,6]
[385845452,1758059501790,-541.51,0.00032054,6]
[385845453,1758059501800,-400.0,0.00032054,6]
[385845454,1758059501810,-400.0,0.00032054,6]
[385845455,1758059501819,-400.0,0.00032054,6]
[385845456,1758059501829,-400.0,0.00032054,6]
[385845457,1758059501838,-400.0,0.00032054,6]
[385845458,1758059501847,-431.13,0.00032054,6]
[385845459,1758059501856,-400.0,0.00032054,6]
[385845460,1758059501865,-666.3,0.00032054,6]
[385845461,1758059501874,-400.0,0.00032054,6]
[385845462,1758059501883,-400.0,0.00032054,6]
[385845463,1758059501892,-400.0,0.00032054,6]
[385845464,1758059501902,-400.0,0.00032054,6]
[385845465,1758059501912,-400.0,0.00032054,6]
[385845466,1758059501921,-547.93,0.00032054,6]
[385845467,1758059501930,-400.0,0.00032054,6]
[385845468,1758059501939,-400.0,0.00032054,6]
[385845469,1758059501948,-400.0,0.00032054,6]
[385845470,1758059501958,-474.55,0.00032054,6]
[385845471,1758059501966,-681.13,0.00032054,6]
[385845472,1758059501976,-445.76,0.00032054,6]
[385845473,1758059501985,-400.0,0.00032054,6]
[385845474,1758059501994,-400.0,0.00032054,6]
[385845475,1758059502002,-520.69,0.00032054,6]
[385845476,1758059502011,-400.0,0.00032054,6]
[385845477,1758059502021,-402.9,0.00032054,6]
[385845478,1758059502030,-400.0,0.00032054,6]
[385845479,1758059502038,-400.0,0.00032054,6]
[385845480,1758059502047,-400.0,0.00032054,6]
[385845481,1758059502056,-400.0,0.00032054,6]
[385845482,1758059502065,-400.0,0.00032054,6]
[385845483,1758059502074,-400.0,0.00032054,6]
[385845484,1758059502083,-400.0,0.00032054,6]
[385845485,1758059502092,-400.0,0.00032054,6]
[385845486,1758059502101,-400.0,0.00032054,6]
[385845487,1758059502110,-520.75,0.00032054,6]
[385845488,1758059502120,-438.72,0.00032054,6]
[385845489,1758059502129,-930.22,0.00032054,6]
[385845490,1758059502138,-400.0,0.00032054,6]
[385845491,1758059502147,-400.0,0.00032054,6]
[385845492,1758059502156,-691.69,0.00032054,6]
[385845493,1758059502165,-541.46,0.00032054,6]
[385845494,1758059502174,-400.0,0.00032054,6]
[385845495,1758059502182,-400.0,0.00032054,6]
[385845496,1758059502191,-400.0,0.00032054,6]
[385845497,1758059502200,-400.0,0.00032054,6]
[385845498,1758059502209,-840.93,0.00032054,6]
[385845499,1758059502218,-400.0,0.00032054,6]
[385845500,1758059502227,-400.0,0.00032054,6]
[385845501,1758059502236,-400.0,0.00032054,6]
[385845502,1758059502246,-531.61,0.00032054,6]
[385845503,1758059502255,-400.0,0.00032054,6]
[385845504,1758059502264,-400.0,0.00032054,6]
[385845505,1758059502273,-400.0,0.00032054,6]
[385845506,1758059502282,-528.41,0.00032054,6]
[385845507,1758059502291,-400.0,0.00032054,6]
[385845508,1758059502300,-3105.74,0.00032054,6]
[385845509,1758059502309,-400.0,0.00032054,6]
[385845510,1758059502318,-593.33,0.00032054,6]
[385845511,1758059502327,-530.57,0.00032054,6]
[385845512,1758059502336,-400.0,0.00032054,6]
[385845513,1758059502345,-400.0,0.00032054,6]
[385845514,1758059502354,-801.13,0.00032054,6]
[385845515,1758059502363,-400.0,0.00032054,6]
[385845516,1758059502372,-400.0,0.00032054,6]
[385845517,1758059502381,-400.0,0.00032054,6]
[385845518,1758059502390,-400.0,0.00032054,6]
[385845519,1758059502404,-400.0,0.00032054,6]
[385845520,1758059502414,-400.0,0.00032054,6]
[385845521,1758059502423,-400.0,0.00032054,6]
[385845522,1758059502432,-400.0,0.00032054,6]
[385845523,1758059502442,-720.72,0.00032054,6]
[385845524,1758059502452,-400.0,0.00032054,6]
[385845525,1758059502461,-400.0,0.00032054,6]
[385845526,1758059502470,-450.36,0.00032054,6]
[385845527,1758059502480,-400.0,0.00032054,6]
[385845528,1758059502489,-400.0,0.00032054,6]
[385845529,1758059502497,-400.0,0.00032054,6]
[385845530,1758059502506,-400.0,0.00032054,6]
[385845531,1758059502515,-400.0,0.00032054,6]
[385845532,1758059502525,-400.0,0.00032054,6]
[385845533,1758059502534,-400.0,0.00032054,6]
[385845534,1758059502542,-400.0,0.00032054,6]
[385845535,1758059502552,-400.0,0.00032054,6]
[385845536,1758059502562,-400.0,0.00032054,6]
[385845537,1758059502571,-455.66,0.00032054,6]
[385845538,1758059502581,-400.0,0.00032054,6]
[385845539,1758059502590,-400.0,0.00032054,6]
[385845540,1758059502599,-400.0,0.00032054,6]
[385845541,1758059502608,-400.0,0.00032054,6]
[385845542,1758059502617,-452.15,0.00032054,6]
[385845543,1758059502627,-383.33533691,0.00032054,6]
[385845544,1758059502636,-400.0,0.00032054,6]
[385845545,1758059502645,-599.86,0.00032054,6]
[385845546,1758059502654,-1299.74,0.00032054,6]
[385845547,1758059502663,-572.67,0.00032054,6]
[385845548,1758059502672,-400.0,0.00032054,6]
[385845549,1758059502681,-400.0,0.00032054,6]
[385845550,1758059502690,-422.38,0.00032054,6]
[385845551,1758059502699,-400.0,0.00032054,6]
[385845552,1758059502708,-400.0,0.00032054,6]
[385845553,1758059502718,-404.16,0.00032054,6]
[385845554,1758059502727,-400.0,0.00032054,6]
[385845555,1758059502736,-400.0,0.00032054,6]
[385845556,1758059502746,-400.0,0.00032054,6]
[385845557,1758059502755,-400.0,0.00032054,6]
[385845558,1758059502765,-924.76,0.00032054,6]
[385845559,1758059502784,-400.0,0.00032054,6]
[385845560,1758059502802,-400.0,0.00032054,6]
[385845561,1758059502811,-1289.24,0.00032054,6]
[385845562,1758059502821,-400.0,0.00032054,6]
[385845563,1758059502830,-400.0,0.00032054,6]
[385845564,1758059502839,-400.0,0.00032054,6]
[385845565,1758059502848,-400.0,0.00032054,6]
[385845566,1758059502857,-400.0,0.00032054,6]
[385845567,1758059502866,-400.0,0.00032054,6]
[385845568,1758059502875,-554.69,0.00032054,6]
[385845569,1758059502884,-400.0,0.00032054,6]
[385845570,1758059502894,-799.13,0.00032054,6]
[385845571,1758059502903,-467.79,0.00032054,6]
[385845572,1758059502912,-943.71,0.00032054,6]
[385845573,1758059502922,-400.0,0.00032054,6]
[385845574,1758059502931,-617.84,0.00032054,6]
[385845575,1758059502940,-400.0,0.00032054,6]
[385845576,1758059502950,-400.0,0.00032054,6]
[385845577,1758059502959,-562.81,0.00032054,6]
[385845578,1758059502969,-400.0,0.00032054,6]
[385845579,1758059502978,-1554.92,0.00032054,6]
[385845580,1758059502987,-400.0,0.00032054,6]
[385845581,1758059502997,-472.52,0.00032054,6]
[385845582,1758059503006,-400.0,0.00032054,6]
[385845583,1758059503015,-400.0,0.00032054,6]
[385845584,1758059503025,-400.0,0.00032054,6]
[385845585,1758059503034,-502.44,0.00032054,6]
[385845586,1758059503044,-400.0,0.00032054,6]
[385845587,1758059503053,-2454.26,0.00032054,6]
[385845588,1758059503062,-400.0,0.00032054,6]
[385845589,1758059503072,-400.0,0.00032054,6]
[385845590,1758059503082,-347.08596034,0.00032054,6]
[385845591,1758059503091,-814.45,0.00032054,6]
[385845592,1758059503100,-400.0,0.00032054,6]
[385845593,1758059503110,-400.0,0.00032054,6]
[385845594,1758059503120,-581.21,0.00032054,6]
[385845595,1758059503131,-400.0,0.00032054,6]
[385845596,1758059503141,-2151.75,0.00032054,6]
[385845597,1758059503150,-400.0,0.00032054,6]
[385845598,1758059503159,-400.0,0.00032054,6]
[385845599,1758059503169,-400.0,0.00032054,6]
[385845600,1758059503178,-400.0,0.00032054,6]
[385845601,1758059503187,-400.0,0.00032054,6]
[385845602,1758059503196,-400.0,0.00032054,6]
[385845603,1758059503206,-436.5634416,0.00032054,6]
[385845604,1758059503215,-590.85,0.00032054,6]
[385845605,1758059503224,-751.42,0.00032054,17]
[385845606,1758059503233,-400.0,0.00032054,6]
[385845607,1758059503242,-400.0,0.00032054,6]
[385845608,1758059503252,-576.61,0.00032054,6]
[385845609,1758059503261,-379.7936088,0.00032054,6]
[385845610,1758059503271,-400.0,0.00032054,6]
[385845611,1758059503280,-616.64,0.00032054,6]
[385845612,1758059503290,-400.0,0.00032054,6]
[385845613,1758059503299,-400.0,0.00032054,6]
[385845614,1758059503308,-426.57,0.00032054,6]
[385845615,1758059503318,-862.95,0.00032054,6]
[385845616,1758059503327,-400.0,0.00032054,6]
[385845617,1758059503337,-2554.31,0.00032054,6]
[385845618,1758059503346,-695.75,0.00032054,6]
[385845619,1758059503356,-465.42,0.00032054,6]
[385845620,1758059503366,-400.0,0.00032054,6]
[385845621,1758059503376,-528.3,0.00032054,6]
[385845622,1758059503386,-400.0,0.00032054,6]
[385845623,1758059503399,-400.0,0.00032054,6]
[385845624,1758059503409,-629.46,0.00032054,6]
[385845625,1758059503583,-400.0,0.00032054,6]
[385845626,1758059503610,-402.58,0.00032054,6]
[385845627,1758059503619,-760.02,0.00032054,6]
[385845628,1758059503629,-400.0,0.00032054,6]
[385845629,1758059503638,-157.54805949,0.00032054,6]
[385845630,1758059503648,-400.0,0.00032054,6]
[385845631,1758059503659,-573.15,0.00032054,6]
[385845632,1758059503671,-400.0,0.00032054,6]
[385845633,1758059503680,-555.71,0.00032054,6]
[385845634,1758059503690,-400.0,0.00032054,6]
[385845635,1758059503698,-400.0,0.00032054,6]
[385845636,1758059503709,-400.0,0.00032054,6]
[385845637,1758059503719,-400.0,0.00032054,6]
[385845638,1758059503730,-400.0,0.00032054,6]
[385845639,1758059503740,-479.18,0.00032054,6]
[385845640,1758059503750,-447.53,0.00032054,6]
[385845641,1758059503759,-418.11,0.00032054,6]
[385845642,1758059503770,-423.89,0.00032054,6]
[385845643,1758059503779,-450.0,0.00032054,6]
[385845644,1758059503791,-435.17,0.00032054,6]
[385845645,1758059503802,-400.0,0.00032054,6]
[385845646,1758059503814,-400.0,0.00032054,6]
[385845647,1758059503824,-400.0,0.00032054,6]
[385845648,1758059503834,-400.0,0.00032054,6]
[385845649,1758059503843,-778.74,0.00032054,6]
[385845650,1758059503852,-704.61,0.00032054,6]
[385845651,1758059503862,-469.74751533,0.00032054,6]
[385845652,1758059503871,-400.0,0.00032054,6]
[385845653,1758059503881,-400.0,0.00032054,6]
[385845654,1758059503891,-400.0,0.00032054,6]
[385845655,1758059503902,-400.0,0.00032054,6]
[385845656,1758059503912,-400.0,0.00032054,6]
[385845657,1758059503922,-1172.18,0.00032054,6]
[385845658,1758059503931,-160.25263061,0.00032054,6]
[385845659,1758059503940,-5286.95,0.00032054,6]
[385845660,1758059503950,-400.0,0.00032054,6]
[385845661,1758059503959,-400.0,0.00032054,6]
[385845662,1758059503968,-400.0,0.00032054,6]
[385845663,1758059503978,-542.4,0.00032054,6]
[385845664,1758059503987,-400.0,0.00032054,6]
[385845665,1758059503997,-400.0,0.00032054,6]
[385845666,1758059504007,-400.0,0.00032054,6]
[385845667,1758059504017,-400.0,0.00032054,6]
[385845668,1758059504026,-435.09,0.00032054,6]
[385845669,1758059504036,-527.52,0.00032054,6]
[385845670,1758059504045,-400.0,0.00032054,6]
[385845671,1758059504054,-551.22,0.00032054,6]
[385845672,1758059504064,-400.0,0.00032054,6]
[385845673,1758059504073,-400.0,0.00032054,6]
[385845674,1758059504083,-486.86322534,0.00032054,6]
[385845675,1758059504092,-400.0,0.00032054,6]
[385845676,1758059504101,-400.0,0.00032054,6]
[385845677,1758059504110,-400.0,0.00032054,6]
[385845678,1758059504119,-483.09,0.00032054,6]
[385845679,1758059504128,-400.0,0.00032054,6]
[385845680,1758059504137,-777.85,0.00032054,6]
[385845681,1758059504147,-400.0,0.00032054,6]
[385845682,1758059504163,-400.0,0.00032054,6]
[385845683,1758059504173,-445.13,0.00032054,6]
[385845684,1758059504182,-510.44,0.00032054,6]
[385845685,1758059504192,-400.0,0.00032054,6]
[385845686,1758059504201,-400.0,0.00032054,6]
[385845687,1758059504211,-650.71,0.00032054,6]
[385845688,1758059504220,-632.37,0.00032054,6]
[385845689,1758059504230,-400.0,0.00032054,6]
[385845690,1758059504239,-400.0,0.00032054,6]
[385845691,1758059504248,-400.0,0.00032054,6]
[385845692,1758059504258,-400.0,0.00032054,6]
[385845693,1758059504267,-763.55,0.00032054,6]
[385845694,1758059504276,-409.45646603,0.00032054,6]
[385845695,1758059504285,-398.57556114,0.00032054,6]
[385845696,1758059504294,-400.0,0.00032054,6]
[385845697,1758059504303,-400.0,0.00032054,6]
[385845698,1758059504313,-701.89,0.00032054,6]
[385845699,1758059504323,-620.92,0.00032054,6]
[385845700,1758059504332,-400.0,0.00032054,6]
[385845701,1758059504342,-400.0,0.00032054,6]
[385845702,1758059504351,-796.09,0.00032054,6]
[385845703,1758059504361,-400.0,0.00032054,6]
[385845704,1758059504371,-400.0,0.00032054,6]
[385845705,1758059504380,-400.0,0.00032054,6]
[385845706,1758059504389,-400.0,0.00032054,6]
[385845707,1758059504402,-400.0,0.00032054,6]
[385845708,1758059504411,-400.0,0.00032054,6]
[385845709,1758059504421,-400.0,0.00032054,6]
[385845710,1758059504431,-400.0,0.00032054,6]
[385845711,1758059504441,-400.0,0.00032054,6]
[385845712,1758059504450,-400.0,0.00032054,6]
[385845713,1758059504460,-400.0,0.00032054,6]
[385845714,1758059504469,-400.0,0.00032054,6]
[385845715,1758059504479,-400.0,0.00032054,6]
[385845716,1758059504489,-745.62,0.00032054,6]
[385845717,1758059504498,-449.41,0.00032054,6]
[385845718,1758059504507,-400.0,0.00032054,6]
[385845719,1758059504517,-629.24,0.00032054,6]
[385845720,1758059504527,-400.0,0.00032054,6]
[385845721,1758059504536,-400.0,0.00032054,6]
[385845722,1758059504545,-447.35,0.00032054,6]
[385845723,1758059504555,-400.0,0.00032054,6]
[385845724,1758059504565,-400.0,0.00032054,6]
[385845725,1758059504574,-400.0,0.00032054,6]
[385845726,1758059504584,-936.1,0.00032054,6]
[385845727,1758059504593,-534.91804668,0.00032054,6]
[385845728,1758059504602,-418.64405282,0.00032054,6]
[385845729,1758059504611,-400.0,0.00032054,6]
[385845730,1758059504621,-400.0,0.00032054,6]
[385845731,1758059504630,-400.0,0.00032054,6]
[385845732,1758059504640,-400.0,0.00032054,6]
[385845733,1758059504649,-400.0,0.00032054,6]
[385845734,1758059504659,-400.0,0.00032054,6]
[385845735,1758059504669,-400.0,0.00032054,6]
[385845736,1758059504678,-1215.29,0.00032054,6]
[385845737,1758059504687,-400.0,0.00032054,6]
[385845738,1758059504696,-400.0,0.00032054,6]
[385845739,1758059504706,-456.54579037,0.00032054,6]
[385845740,1758059504715,-400.0,0.00032054,6]
[385845741,1758059504724,-400.0,0.00032054,6]
[385845742,1758059504734,-470.35,0.00032054,6]
[385845743,1758059504743,-400.0,0.00032054,6]
[385845744,1758059504753,-400.0,0.00032054,6]
[385845745,1758059504762,-400.0,0.00032054,6]
[385845746,1758059504771,-722.71,0.00032054,6]
[385845747,1758059504780,-400.0,0.00032054,6]
[385845748,1758059504790,-400.0,0.00032054,6]
[385845749,1758059504798,-656.3,0.00032054,6]
[385845750,1758059504808,-400.0,0.00032054,6]
[385845751,1758059504818,-400.0,0.00032054,6]
[385845752,1758059504827,-1790.44,0.00032054,6]
[385845753,1758059504837,-408.20727079,0.00032054,6]
[385845754,1758059504846,-400.0,0.00032054,6]
[385845755,1758059504856,-400.0,0.00032054,6]
[385845756,1758059504865,-1382.16,0.00032054,6]
[385845757,1758059504875,-411.30715426,0.00032054,6]
[385845758,1758059504884,-1005.55,0.00032054,6]
[385845759,1758059504893,-400.0,0.00032054,6]
[385845760,1758059504902,-429.26,0.00032054,6]
[385845761,1758059504911,-400.0,0.00032054,6]
[385845762,1758059504921,-371.70474454,0.00032054,6]
[385845763,1758059504930,-400.0,0.00032054,6]
[385845764,1758059504940,-400.0,0.00032054,6]
[385845765,1758059504949,-400.0,0.00032054,6]
[385845766,1758059504958,-400.0,0.00032054,6]
[385845767,1758059504967,-400.0,0.00032054,6]
[385845768,1758059504977,-400.0,0.00032054,6]
[385845769,1758059504986,-273.16563555,0.00032054,6]
[385845770,1758059504995,-400.0,0.00032054,6]
[385845771,1758059505004,-400.0,0.00032054,6]
[385845772,1758059505013,-690.12,0.00032054,6]
[385845773,1758059505023,-400.0,0.00032054,6]
[385845774,1758059505032,-607.8,0.00032054,6]
[385845775,1758059505041,-671.41,0.00032054,6]
[385845776,1758059505051,-400.0,0.00032054,6]
[385845777,1758059505061,-400.0,0.00032054,6]
[385845778,1758059505070,-1101.76,0.00032054,6]
[385845779,1758059505079,-644.78,0.00032054,6]
[385845780,1758059505089,-400.0,0.00032054,6]
[385845781,1758059505098,-400.0,0.00032054,6]
[385845782,1758059505108,-400.0,0.00032054,6]
[385845783,1758059505117,-400.0,0.00032054,6]
[385845784,1758059505126,-783.19,0.00032054,6]
[385845785,1758059505136,-400.0,0.00032054,6]
[385845786,1758059505145,-400.0,0.00032054,6]
[385845787,1758059505154,-400.0,0.00032054,6]
[385845788,1758059505163,-400.0,0.00032054,6]
[385845789,1758059505173,-467.3,0.00032054,6]
[385845790,1758059505182,-400.0,0.00032054,6]
[385845791,1758059505192,-450.16,0.00032054,6]
[385845792,1758059505201,-400.0,0.00032054,6]
[385845793,1758059505210,-400.0,0.00032054,6]
[385845794,1758059505219,-400.0,0.00032054,6]
[385845795,1758059505229,-400.0,0.00032054,6]
[385845796,1758059505238,-1181.9,0.00032054,6]
[385845797,1758059505247,-400.0,0.00032054,6]
[385845798,1758059505256,-400.0,0.00032054,6]
[385845799,1758059505265,-400.0,0.00032054,6]
[385845800,1758059505275,-431.77,0.00032054,6]
[385845801,1758059505284,-400.0,0.00032054,6]
[385845802,1758059505293,-400.0,0.00032054,6]
[385845803,1758059505302,-1421.99,0.00032054,6]
[385845804,1758059505311,-604.53,0.00032054,6]
[385845805,1758059505321,-400.0,0.00032054,6]
[385845806,1758059505333,-417.22,0.00032054,6]
[385845807,1758059505342,-633.44,0.00032054,6]
[385845808,1758059505351,-400.0,0.00032054,6]
[385845809,1758059505360,-400.0,0.00032054,6]
[385845810,1758059505370,-400.0,0.00032054,6]
[385845811,1758059505380,-400.0,0.00032054,6]
[385845812,1758059505390,-500.0,0.00032066,120]
[385845813,1758059505402,-8023.33187065,0.00032072,2]
[385845814,1758059505411,-600.0,0.0003209,5]
[385845815,1758059505420,-400.0,0.00032116,6]
[385845816,1758059505430,-400.0,0.00032116,6]
[385845817,1758059505439,-892.92,0.00032116,6]
[385845818,1758059505448,-400.0,0.00032116,6]
[385845819,1758059505457,-568.06,0.00032116,6]
[385845820,1758059505467,-1072.67,0.00032116,6]
[385845821,1758059505477,-512.55,0.00032116,6]
[385845822,1758059505487,-774.02,0.00032116,5]
[385845823,1758059505496,-400.0,0.00032116,6]
[385845824,1758059505505,-400.0,0.00032116,6]
[385845825,1758059505515,-884.99864241,0.00032116,5]
[385845826,1758059505524,-1111.31,0.00032194,2]
[385845827,1758059505533,-40912.11208476,0.00032228,2]
[385845828,1758059505542,-4828.1955689,0.00032249,2]
[385845829,1758059505552,-163.565898,0.00032261,4]
[385845830,1758059505561,-2058.39,0.00032289,6]
[385845831,1758059505571,-400.0,0.00032289,6]
[385845832,1758059505580,-412.53,0.00032289,6]
[385845833,1758059505589,-618.61,0.00032289,6]
[385845834,1758059505598,-1651.68,0.00032289,6]
[385845835,1758059505607,-2717.2,0.00032289,6]
[385845836,1758059505617,-400.0,0.00032289,6]
[385845837,1758059505627,-462.71,0.00032289,6]
[385845838,1758059505636,-400.0,0.00032289,6]
[385845839,1758059505645,-400.0,0.00032289,6]
[385845840,1758059505655,-400.0,0.00032289,6]
[385845841,1758059505664,-400.0,0.00032289,6]
[385845842,1758059505673,-400.0,0.00032289,6]